[Event "Late-Titled-Tuesday-Blitz-March-19-2024"]
[Site "Chess.com"]
[Date "2024.03.19"]
[Round "8"]
[White "FairChess_on_YouTube"]
[Black "Sanan_Sjugirov"]
[Result "1-0"]
[WhiteElo "3159"]
[BlackElo "3007"]
[TimeControl "180+1"]
[EndTime "15:28:51 PDT"]
[Termination "FairChess_on_YouTube won on time"]

1. d4 {[%clk 0:03:00.9]} 1... Nf6 {[%clk 0:02:58.8]} 2. c4 {[%clk 0:03:01]} 2...
e6 {[%clk 0:02:55.8]} 3. Nf3 {[%clk 0:03:01.6]} 3... d5 {[%clk 0:02:53.2]} 4. g3
{[%clk 0:03:01.9]} 4... Be7 {[%clk 0:02:42.6]} 5. Bg2 {[%clk 0:03:02]} 5... O-O
{[%clk 0:02:43.2]} 6. O-O {[%clk 0:03:02.3]} 6... dxc4 {[%clk 0:02:43.6]} 7. Qa4
{[%clk 0:03:02.6]} 7... a6 {[%clk 0:02:43.3]} 8. Qxc4 {[%clk 0:03:02.4]} 8... b5
{[%clk 0:02:43.9]} 9. Qc2 {[%clk 0:03:03]} 9... Bb7 {[%clk 0:02:44.5]} 10. Bd2
{[%clk 0:03:03.8]} 10... h6 {[%clk 0:02:34.3]} 11. Rc1 {[%clk 0:02:59.4]} 11...
Bd6 {[%clk 0:02:33.4]} 12. a3 {[%clk 0:02:48.5]} 12... Qe7 {[%clk 0:02:24.4]}
13. b4 {[%clk 0:02:41.4]} 13... Nbd7 {[%clk 0:02:21.8]} 14. Nc3 {[%clk
0:02:35.5]} 14... Rab8 {[%clk 0:02:14.3]} 15. Bf4 {[%clk 0:02:05.6]} 15... e5
{[%clk 0:02:00.3]} 16. Nxe5 {[%clk 0:02:04.3]} 16... Nxe5 {[%clk 0:02:00]} 17.
dxe5 {[%clk 0:02:01.3]} 17... Bxe5 {[%clk 0:01:59.4]} 18. Bxe5 {[%clk
0:01:42.5]} 18... Qxe5 {[%clk 0:02:00.3]} 19. e3 {[%clk 0:01:27.5]} 19... Bxg2
{[%clk 0:01:59.4]} 20. Kxg2 {[%clk 0:01:28.4]} 20... c5 {[%clk 0:01:55.5]} 21.
bxc5 {[%clk 0:01:28.3]} 21... Qxc5 {[%clk 0:01:56.4]} 22. Ne2 {[%clk 0:01:25.3]}
22... Qxc2 {[%clk 0:01:32.8]} 23. Rxc2 {[%clk 0:01:25.1]} 23... Rfc8 {[%clk
0:01:31.9]} 24. Rac1 {[%clk 0:01:24.6]} 24... Rxc2 {[%clk 0:01:31.9]} 25. Rxc2
{[%clk 0:01:25.5]} 25... Kf8 {[%clk 0:00:44.4]} 26. Nd4 {[%clk 0:01:24.8]} 26...
Nd7 {[%clk 0:00:29.2]} 27. Rc6 {[%clk 0:01:10.6]} 27... Rb6 {[%clk 0:00:20]} 28.
Rc7 {[%clk 0:01:06.9]} 28... Ke8 {[%clk 0:00:18.3]} 29. Nc6 {[%clk 0:01:01.8]}
29... Nc5 {[%clk 0:00:08.6]} 30. Ne5 {[%clk 0:01:01.6]} 30... Ne4 {[%clk
0:00:01.7]} 31. f3 {[%clk 0:00:30.7]} 31... Nd6 {[%clk 0:00:02.1]} 32. Ra7
{[%clk 0:00:27.3]} 32... a5 {[%clk 0:00:02.4]} 33. Rxa5 {[%clk 0:00:26]} 33...
f6 {[%clk 0:00:02.4]} 34. Ra8+ {[%clk 0:00:21.1]} 34... Ke7 {[%clk 0:00:02.9]}
35. Ng6+ {[%clk 0:00:21.5]} 35... Kf7 {[%clk 0:00:03]} 36. Nf4 {[%clk
0:00:21.8]} 36... Nc4 {[%clk 0:00:03.1]} 37. Ra7+ {[%clk 0:00:22.2]} 37... Kg8
{[%clk 0:00:03.3]} 38. Nd5 {[%clk 0:00:22.3]} 38... Rd6 {[%clk 0:00:03.1]} 39.
e4 {[%clk 0:00:22.3]} 39... Rd8 {[%clk 0:00:01.6]} 40. g4 {[%clk 0:00:21.9]}
40... Rb8 {[%clk 0:00:01.2]} 41. Kg3 {[%clk 0:00:22.1]} 41... Ne5 {[%clk
0:00:01.4]} 42. h4 {[%clk 0:00:20.5]} 42... Nc6 {[%clk 0:00:01.8]} 43. Rc7
{[%clk 0:00:20.1]} 43... Nd4 {[%clk 0:00:02.3]} 44. h5 {[%clk 0:00:18.2]} 44...
Ra8 {[%clk 0:00:02.3]} 45. Ne7+ {[%clk 0:00:15.2]} 45... Kf8 {[%clk 0:00:02.8]}
46. Ng6+ {[%clk 0:00:15]} 46... Kg8 {[%clk 0:00:03.5]} 47. Rd7 {[%clk
0:00:15.7]} 47... Ne2+ {[%clk 0:00:02.7]} 48. Kf2 {[%clk 0:00:15.5]} 48... Nc3
{[%clk 0:00:03.6]} 49. Ne7+ {[%clk 0:00:15.5]} 49... Kf8 {[%clk 0:00:03.2]} 50.
Nf5 {[%clk 0:00:16.1]} 50... Rxa3 {[%clk 0:00:02.7]} 51. Rxg7 {[%clk 0:00:16.2]}
51... b4 {[%clk 0:00:03.2]} 52. Rb7 {[%clk 0:00:16.2]} 52... Ra2+ {[%clk
0:00:03.8]} 53. Kg3 {[%clk 0:00:14.2]} 53... Ne2+ {[%clk 0:00:03.6]} 54. Kh4
{[%clk 0:00:14.8]} 54... Ng1 {[%clk 0:00:02.3]} 55. Rxb4 {[%clk 0:00:12.8]}
55... Nxf3+ {[%clk 0:00:02.5]} 56. Kg3 {[%clk 0:00:13.3]} 56... Ng5 {[%clk
0:00:02.8]} 57. Rb8+ {[%clk 0:00:12.9]} 57... Kf7 {[%clk 0:00:02.6]} 58. Nxh6+
{[%clk 0:00:13.5]} 58... Ke6 {[%clk 0:00:03.3]} 59. Rb6+ {[%clk 0:00:12.4]}
59... Ke5 {[%clk 0:00:03]} 60. Rb5+ {[%clk 0:00:11.8]} 60... Kxe4 {[%clk
0:00:03]} 61. Ng8 {[%clk 0:00:11.5]} 61... Ra3+ {[%clk 0:00:03.4]} 62. Kg2
{[%clk 0:00:11.8]} 62... Kf4 {[%clk 0:00:03.7]} 63. Nxf6 {[%clk 0:00:11.2]}
63... Ra2+ {[%clk 0:00:04.3]} 64. Kf1 {[%clk 0:00:11.1]} 64... Nf3 {[%clk
0:00:04.8]} 65. Rf5+ {[%clk 0:00:06.7]} 65... Ke3 {[%clk 0:00:03.8]} 66. Nd5+
{[%clk 0:00:06.6]} 66... Ke4 {[%clk 0:00:04.4]} 67. Nc3+ {[%clk 0:00:06.5]}
67... Ke3 {[%clk 0:00:05.1]} 68. Nxa2 {[%clk 0:00:07.4]} 1-0

[Event "Late-Titled-Tuesday-Blitz-March-19-2024"]
[Site "Chess.com"]
[Date "2024.03.19"]
[Round "8"]
[White "Shahdad2007"]
[Black "liwadas82"]
[Result "1-0"]
[WhiteElo "2608"]
[BlackElo "2512"]
[TimeControl "180+1"]
[EndTime "15:28:52 PDT"]
[Termination "Shahdad2007 won on time"]

1. e4 {[%clk 0:03:00.9]} 1... e5 {[%clk 0:03:00]} 2. Nf3 {[%clk 0:03:00.9]} 2...
Nc6 {[%clk 0:03:00.5]} 3. Bc4 {[%clk 0:03:00.6]} 3... Bc5 {[%clk 0:02:59.8]} 4.
c3 {[%clk 0:03:00.8]} 4... Nf6 {[%clk 0:02:59.2]} 5. d4 {[%clk 0:03:00.9]} 5...
exd4 {[%clk 0:02:59.6]} 6. e5 {[%clk 0:03:01.4]} 6... d5 {[%clk 0:02:59.4]} 7.
Bb5 {[%clk 0:03:02.1]} 7... Ne4 {[%clk 0:02:58.8]} 8. cxd4 {[%clk 0:03:02.7]}
8... Bb4+ {[%clk 0:02:58.3]} 9. Bd2 {[%clk 0:03:02.5]} 9... Bxd2+ {[%clk
0:02:57.3]} 10. Nbxd2 {[%clk 0:03:03.4]} 10... O-O {[%clk 0:02:47.2]} 11. O-O
{[%clk 0:03:02]} 11... Nxd2 {[%clk 0:02:43.9]} 12. Qxd2 {[%clk 0:03:00.8]} 12...
Ne7 {[%clk 0:02:42.8]} 13. Bd3 {[%clk 0:02:58.9]} 13... Bf5 {[%clk 0:02:41.5]}
14. Rac1 {[%clk 0:02:54.4]} 14... c6 {[%clk 0:02:40.3]} 15. Ng5 {[%clk 0:02:51]}
15... h6 {[%clk 0:02:32]} 16. Nh3 {[%clk 0:02:49.1]} 16... Bxh3 {[%clk
0:02:20.4]} 17. gxh3 {[%clk 0:02:50]} 17... Qd7 {[%clk 0:02:20.5]} 18. Kg2
{[%clk 0:02:48.6]} 18... f6 {[%clk 0:02:14]} 19. f4 {[%clk 0:02:46.9]} 19... Nf5
{[%clk 0:02:06.3]} 20. Bxf5 {[%clk 0:02:45]} 20... Qxf5 {[%clk 0:02:05.8]} 21.
Qc2 {[%clk 0:02:45.4]} 21... Qh5 {[%clk 0:01:56.2]} 22. Rce1 {[%clk 0:02:30.8]}
22... fxe5 {[%clk 0:01:47]} 23. dxe5 {[%clk 0:02:28.8]} 23... Rae8 {[%clk
0:01:29.4]} 24. e6 {[%clk 0:02:20.8]} 24... Qf5 {[%clk 0:01:20.6]} 25. Qxf5
{[%clk 0:02:10.7]} 25... Rxf5 {[%clk 0:01:21.5]} 26. Rf3 {[%clk 0:02:10.7]}
26... Kf8 {[%clk 0:01:16.4]} 27. Kg3 {[%clk 0:02:08.6]} 27... Ke7 {[%clk
0:01:12.1]} 28. Rb3 {[%clk 0:02:07.4]} 28... b6 {[%clk 0:01:08.7]} 29. a4 {[%clk
0:02:05]} 29... Kd6 {[%clk 0:01:04.9]} 30. a5 {[%clk 0:01:59.4]} 30... b5 {[%clk
0:01:04.5]} 31. Rc3 {[%clk 0:01:57.9]} 31... c5 {[%clk 0:01:02.3]} 32. Kg4
{[%clk 0:01:41.5]} 32... g6 {[%clk 0:01:02.5]} 33. Rce3 {[%clk 0:01:36.5]} 33...
Re7 {[%clk 0:00:56.1]} 34. h4 {[%clk 0:01:25.3]} 34... h5+ {[%clk 0:00:53.1]}
35. Kg3 {[%clk 0:01:24]} 35... Rf6 {[%clk 0:00:53.2]} 36. Rb3 {[%clk 0:00:59.1]}
36... b4 {[%clk 0:00:51.9]} 37. a6 {[%clk 0:00:55.8]} 37... Rfxe6 {[%clk
0:00:48.6]} 38. Ra1 {[%clk 0:00:56.3]} 38... Re3+ {[%clk 0:00:46.6]} 39. Rxe3
{[%clk 0:00:56.6]} 39... Rxe3+ {[%clk 0:00:47.3]} 40. Kf2 {[%clk 0:00:57.5]}
40... Rb3 {[%clk 0:00:41.5]} 41. Rg1 {[%clk 0:00:57.2]} 41... Rxb2+ {[%clk
0:00:40.4]} 42. Ke3 {[%clk 0:00:57.5]} 42... Rb3+ {[%clk 0:00:37.6]} 43. Kf2
{[%clk 0:00:56.6]} 43... c4 {[%clk 0:00:35]} 44. Rxg6+ {[%clk 0:00:56.4]} 44...
Kc5 {[%clk 0:00:35.7]} 45. f5 {[%clk 0:00:55.4]} 45... c3 {[%clk 0:00:19.7]} 46.
f6 {[%clk 0:00:54]} 46... c2 {[%clk 0:00:18.2]} 47. Rg1 {[%clk 0:00:52.1]} 47...
Rb1 {[%clk 0:00:16.8]} 48. f7 {[%clk 0:00:40.2]} 48... Rxg1 {[%clk 0:00:16.5]}
49. f8=Q+ {[%clk 0:00:39.8]} 49... Kb5 {[%clk 0:00:12.7]} 50. Qe8+ {[%clk
0:00:39.4]} 50... Kc4 {[%clk 0:00:10.7]} 51. Qc6+ {[%clk 0:00:39.2]} 51... Kd3
{[%clk 0:00:09.9]} 52. Kxg1 {[%clk 0:00:39.5]} 52... b3 {[%clk 0:00:08.5]} 53.
Qxd5+ {[%clk 0:00:40.1]} 53... Kc3 {[%clk 0:00:08.7]} 54. Qe5+ {[%clk
0:00:40.2]} 54... Kd2 {[%clk 0:00:08.7]} 55. Qd4+ {[%clk 0:00:39.8]} 55... Ke2
{[%clk 0:00:07.9]} 56. Qc4+ {[%clk 0:00:38.6]} 56... Kd2 {[%clk 0:00:07.5]} 57.
Qd5+ {[%clk 0:00:37.8]} 57... Ke2 {[%clk 0:00:07.6]} 58. Qxh5+ {[%clk
0:00:37.8]} 58... Kd2 {[%clk 0:00:07.5]} 59. Qd5+ {[%clk 0:00:37.7]} 59... Ke2
{[%clk 0:00:07.7]} 60. Qc4+ {[%clk 0:00:35.3]} 60... Kd2 {[%clk 0:00:07.4]} 61.
Kf2 {[%clk 0:00:29.9]} 61... c1=Q {[%clk 0:00:04.3]} 62. Qxb3 {[%clk 0:00:27.8]}
62... Qc5+ {[%clk 0:00:03.6]} 63. Kf3 {[%clk 0:00:27]} 63... Qc6+ {[%clk
0:00:03.4]} 64. Kg4 {[%clk 0:00:26.8]} 64... Qxa6 {[%clk 0:00:03.4]} 65. Qd5+
{[%clk 0:00:25.1]} 65... Ke3 {[%clk 0:00:03.4]} 66. Qe5+ {[%clk 0:00:24.3]}
66... Kd2 {[%clk 0:00:03.6]} 67. h5 {[%clk 0:00:24.6]} 67... Qc8+ {[%clk
0:00:01.8]} 68. Qf5 {[%clk 0:00:24.2]} 68... Qg8+ {[%clk 0:00:01.9]} 69. Qg5+
{[%clk 0:00:24.4]} 69... Qxg5+ {[%clk 0:00:02.4]} 70. Kxg5 {[%clk 0:00:25.3]}
70... a5 {[%clk 0:00:03.1]} 71. h6 {[%clk 0:00:26.2]} 71... a4 {[%clk 0:00:04]}
72. h7 {[%clk 0:00:27.1]} 72... a3 {[%clk 0:00:04.9]} 73. h8=Q {[%clk
0:00:27.8]} 73... a2 {[%clk 0:00:05.8]} 74. Qa1 {[%clk 0:00:27.9]} 1-0

[Event "Late-Titled-Tuesday-Blitz-March-19-2024"]
[Site "Chess.com"]
[Date "2024.03.19"]
[Round "8"]
[White "SultaiC"]
[Black "Charodej1"]
[Result "1-0"]
[WhiteElo "2510"]
[BlackElo "2379"]
[TimeControl "180+1"]
[EndTime "15:28:53 PDT"]
[Termination "SultaiC won on time"]

1. e4 {[%clk 0:02:43.2]} 1... c6 {[%clk 0:02:58.6]} 2. d4 {[%clk 0:02:43.8]}
2... d5 {[%clk 0:02:59.2]} 3. exd5 {[%clk 0:02:44.2]} 3... cxd5 {[%clk
0:02:59.3]} 4. Bd3 {[%clk 0:02:45.1]} 4... Nc6 {[%clk 0:02:59.3]} 5. c3 {[%clk
0:02:46]} 5... Nf6 {[%clk 0:02:59.4]} 6. Bf4 {[%clk 0:02:36.5]} 6... Bg4 {[%clk
0:02:58.3]} 7. Qb3 {[%clk 0:02:36]} 7... Qd7 {[%clk 0:02:58.4]} 8. Nd2 {[%clk
0:02:35.1]} 8... e6 {[%clk 0:02:58.7]} 9. Ngf3 {[%clk 0:02:35.3]} 9... Bxf3
{[%clk 0:02:59.4]} 10. Nxf3 {[%clk 0:02:36.2]} 10... Bd6 {[%clk 0:02:59.8]} 11.
Ne5 {[%clk 0:02:36.1]} 11... Qc7 {[%clk 0:02:59]} 12. O-O {[%clk 0:02:33.7]}
12... O-O {[%clk 0:02:58.8]} 13. Rfe1 {[%clk 0:02:33.9]} 13... Rab8 {[%clk
0:02:43.7]} 14. a4 {[%clk 0:02:33.5]} 14... Rfc8 {[%clk 0:02:25.6]} 15. Bg3
{[%clk 0:02:27.3]} 15... a6 {[%clk 0:02:18.5]} 16. Nxc6 {[%clk 0:02:10.7]} 16...
bxc6 {[%clk 0:02:03.4]} 17. Qc2 {[%clk 0:02:09.3]} 17... Bxg3 {[%clk 0:01:43.7]}
18. hxg3 {[%clk 0:02:10.2]} 18... a5 {[%clk 0:01:38.2]} 19. Rab1 {[%clk
0:02:08.9]} 19... c5 {[%clk 0:01:37.5]} 20. Qd2 {[%clk 0:02:08.4]} 20... cxd4
{[%clk 0:01:35.4]} 21. cxd4 {[%clk 0:02:09.3]} 21... Qb6 {[%clk 0:01:30.6]} 22.
b3 {[%clk 0:02:08]} 22... h6 {[%clk 0:01:30.2]} 23. Bb5 {[%clk 0:01:45.2]} 23...
Ne4 {[%clk 0:01:26]} 24. Qe3 {[%clk 0:01:40.5]} 24... Nc3 {[%clk 0:01:21.6]} 25.
Rbc1 {[%clk 0:01:38.1]} 25... Nxb5 {[%clk 0:01:21.5]} 26. axb5 {[%clk
0:01:38.4]} 26... Qxb5 {[%clk 0:01:21.9]} 27. Rb1 {[%clk 0:01:24.1]} 27... Qb4
{[%clk 0:01:18.3]} 28. Qe5 {[%clk 0:01:15]} 28... Rc3 {[%clk 0:01:00]} 29. g4
{[%clk 0:01:13.1]} 29... Rbc8 {[%clk 0:00:54.4]} 30. g5 {[%clk 0:01:11.5]} 30...
hxg5 {[%clk 0:00:54.1]} 31. Qxg5 {[%clk 0:01:02.1]} 31... Qxd4 {[%clk
0:00:51.2]} 32. Rbd1 {[%clk 0:01:00.4]} 32... Qf6 {[%clk 0:00:46.7]} 33. Qd2
{[%clk 0:01:00.3]} 33... Rc2 {[%clk 0:00:43.4]} 34. Qe3 {[%clk 0:01:00]} 34...
R8c3 {[%clk 0:00:36.9]} 35. Qb6 {[%clk 0:00:59.8]} 35... Rxb3 {[%clk 0:00:28.1]}
36. Qa7 {[%clk 0:00:57.4]} 36... Rbc3 {[%clk 0:00:26]} 37. Rf1 {[%clk
0:00:57.4]} 37... Rc5 {[%clk 0:00:24.2]} 38. Qb8+ {[%clk 0:00:55.9]} 38... Rc8
{[%clk 0:00:19.9]} 39. Qb3 {[%clk 0:00:54.5]} 39... Qc3 {[%clk 0:00:19.3]} 40.
Qa4 {[%clk 0:00:53.7]} 40... Qb4 {[%clk 0:00:19.3]} 41. Qa1 {[%clk 0:00:42.6]}
41... a4 {[%clk 0:00:18.5]} 42. Rb1 {[%clk 0:00:41.6]} 42... Qc4 {[%clk
0:00:16.4]} 43. Qa3 {[%clk 0:00:39.2]} 43... Rc3 {[%clk 0:00:16.1]} 44. Qe7
{[%clk 0:00:34.2]} 44... Qc7 {[%clk 0:00:15]} 45. Qb4 {[%clk 0:00:34.3]} 45...
a3 {[%clk 0:00:15]} 46. Ra1 {[%clk 0:00:32.5]} 46... Qc5 {[%clk 0:00:14.7]} 47.
Qb7 {[%clk 0:00:30.6]} 47... Rc7 {[%clk 0:00:13.8]} 48. Qa8+ {[%clk 0:00:30.4]}
48... Rc8 {[%clk 0:00:14.3]} 49. Qa4 {[%clk 0:00:30.4]} 49... d4 {[%clk
0:00:14]} 50. Rfd1 {[%clk 0:00:30.3]} 50... d3 {[%clk 0:00:14.4]} 51. Qd7 {[%clk
0:00:30.6]} 51... Rc2 {[%clk 0:00:12]} 52. Rf1 {[%clk 0:00:28.1]} 52... Rc3
{[%clk 0:00:09.4]} 53. Rad1 {[%clk 0:00:27.6]} 53... Qd5 {[%clk 0:00:06.8]} 54.
Qa4 {[%clk 0:00:27.5]} 54... a2 {[%clk 0:00:05.9]} 55. Ra1 {[%clk 0:00:27.7]}
55... Rc2 {[%clk 0:00:06.1]} 56. g3 {[%clk 0:00:27]} 56... Qc4 {[%clk
0:00:05.9]} 57. Qd7 {[%clk 0:00:25.9]} 57... d2 {[%clk 0:00:06.1]} 58. Rfd1
{[%clk 0:00:26.3]} 58... Rc1 {[%clk 0:00:06.4]} 59. Qxd2 {[%clk 0:00:26.4]}
59... Rxd1+ {[%clk 0:00:06.5]} 60. Qxd1 {[%clk 0:00:27.2]} 60... g6 {[%clk
0:00:04.8]} 61. Qd2 {[%clk 0:00:27.2]} 61... Ra8 {[%clk 0:00:04.5]} 62. Qb2
{[%clk 0:00:27.3]} 62... Qd5 {[%clk 0:00:03.5]} 63. Qc2 {[%clk 0:00:15.1]} 63...
e5 {[%clk 0:00:03]} 64. Qc1 {[%clk 0:00:14.8]} 64... e4 {[%clk 0:00:02.8]} 65.
Qe3 {[%clk 0:00:14.9]} 65... Qd3 {[%clk 0:00:02.3]} 66. Qe1 {[%clk 0:00:15.2]}
1-0

[Event "Late-Titled-Tuesday-Blitz-March-19-2024"]
[Site "Chess.com"]
[Date "2024.03.19"]
[Round "8"]
[White "Der_Balak_3Halak"]
[Black "malakismayil"]
[Result "1-0"]
[WhiteElo "2426"]
[BlackElo "2509"]
[TimeControl "180+1"]
[EndTime "15:28:54 PDT"]
[Termination "Der_Balak_3Halak won on time"]

1. Nf3 {[%clk 0:02:59.8]} 1... Nf6 {[%clk 0:02:58.2]} 2. g3 {[%clk 0:03:00.6]}
2... d5 {[%clk 0:02:58]} 3. Bg2 {[%clk 0:03:01.5]} 3... e6 {[%clk 0:02:58.9]} 4.
O-O {[%clk 0:03:01.5]} 4... Be7 {[%clk 0:02:59.8]} 5. d4 {[%clk 0:03:00.4]} 5...
O-O {[%clk 0:03:00.7]} 6. c4 {[%clk 0:02:59.4]} 6... dxc4 {[%clk 0:02:59.6]} 7.
Nc3 {[%clk 0:02:58.1]} 7... c5 {[%clk 0:02:58.8]} 8. e3 {[%clk 0:02:52.6]} 8...
Nc6 {[%clk 0:02:57.9]} 9. dxc5 {[%clk 0:02:44.6]} 9... Bxc5 {[%clk 0:02:58.8]}
10. Qa4 {[%clk 0:02:35]} 10... Qe7 {[%clk 0:02:55]} 11. Qxc4 {[%clk 0:02:32.8]}
11... e5 {[%clk 0:02:51.5]} 12. e4 {[%clk 0:02:26.3]} 12... Be6 {[%clk
0:02:47.7]} 13. Nd5 {[%clk 0:02:25.8]} 13... Bxd5 {[%clk 0:02:36.5]} 14. exd5
{[%clk 0:02:26.7]} 14... Nd4 {[%clk 0:02:33.7]} 15. Bg5 {[%clk 0:02:19.6]} 15...
Rac8 {[%clk 0:02:27.2]} 16. Nxd4 {[%clk 0:02:10.5]} 16... Bxd4 {[%clk
0:02:26.5]} 17. Qb3 {[%clk 0:02:08.9]} 17... b6 {[%clk 0:02:25]} 18. Rac1 {[%clk
0:02:05.5]} 18... Qd6 {[%clk 0:02:24.8]} 19. Rc6 {[%clk 0:02:04.2]} 19... Rxc6
{[%clk 0:02:17.1]} 20. dxc6 {[%clk 0:02:05.1]} 20... Ne8 {[%clk 0:01:47.1]} 21.
Qa4 {[%clk 0:01:50.1]} 21... a5 {[%clk 0:01:42.9]} 22. Rc1 {[%clk 0:01:43.1]}
22... Nc7 {[%clk 0:01:42.2]} 23. Qb3 {[%clk 0:01:37.3]} 23... h6 {[%clk
0:01:34.3]} 24. Be3 {[%clk 0:01:37.3]} 24... Rd8 {[%clk 0:01:32.3]} 25. Rd1
{[%clk 0:01:33]} 25... Qc5 {[%clk 0:01:25.6]} 26. Rc1 {[%clk 0:01:28.6]} 26...
Qd6 {[%clk 0:01:22.2]} 27. Rd1 {[%clk 0:01:28.2]} 27... Qe6 {[%clk 0:00:53]} 28.
Qxe6 {[%clk 0:01:05.4]} 28... Nxe6 {[%clk 0:00:53.9]} 29. Bh3 {[%clk 0:01:01.4]}
29... Nc7 {[%clk 0:00:52.9]} 30. Bxd4 {[%clk 0:01:00]} 30... Rxd4 {[%clk
0:00:42.6]} 31. Rxd4 {[%clk 0:00:58.9]} 31... exd4 {[%clk 0:00:43.5]} 32. Kg2
{[%clk 0:00:53.7]} 32... Kf8 {[%clk 0:00:43.9]} 33. Kf3 {[%clk 0:00:53.7]} 33...
Ke7 {[%clk 0:00:44.5]} 34. Ke4 {[%clk 0:00:52.5]} 34... Kd6 {[%clk 0:00:45.1]}
35. Bd7 {[%clk 0:00:51.8]} 35... Nb5 {[%clk 0:00:40.4]} 36. a4 {[%clk
0:00:50.1]} 36... Na7 {[%clk 0:00:40.3]} 37. Kxd4 {[%clk 0:00:43.6]} 37... Nxc6+
{[%clk 0:00:39.9]} 38. Bxc6 {[%clk 0:00:44.5]} 38... Kxc6 {[%clk 0:00:40.8]} 39.
Kc4 {[%clk 0:00:43.8]} 39... h5 {[%clk 0:00:38.9]} 40. h4 {[%clk 0:00:39]} 40...
Kd6 {[%clk 0:00:28]} 41. Kb5 {[%clk 0:00:37.7]} 41... Kc7 {[%clk 0:00:28.1]} 42.
Ka6 {[%clk 0:00:20.8]} 42... Kc6 {[%clk 0:00:27.7]} 43. Ka7 {[%clk 0:00:21.2]}
43... g6 {[%clk 0:00:17.7]} 44. Kb8 {[%clk 0:00:19.7]} 44... f6 {[%clk
0:00:14.4]} 45. b3 {[%clk 0:00:19.5]} 45... g5 {[%clk 0:00:12.9]} 46. Kc8 {[%clk
0:00:19.5]} 46... gxh4 {[%clk 0:00:03.9]} 47. gxh4 {[%clk 0:00:20.4]} 47... f5
{[%clk 0:00:04.4]} 48. f4 {[%clk 0:00:20.1]} 48... Kd5 {[%clk 0:00:02.6]} 49.
Kb7 {[%clk 0:00:21]} 49... Ke4 {[%clk 0:00:03.2]} 50. Kxb6 {[%clk 0:00:21.1]}
50... Kxf4 {[%clk 0:00:03.9]} 51. Kxa5 {[%clk 0:00:19.4]} 51... Kg4 {[%clk
0:00:04.5]} 52. b4 {[%clk 0:00:20.3]} 52... f4 {[%clk 0:00:05.1]} 53. b5 {[%clk
0:00:21.2]} 53... f3 {[%clk 0:00:05.8]} 54. b6 {[%clk 0:00:22.1]} 54... f2
{[%clk 0:00:06.5]} 55. b7 {[%clk 0:00:23]} 55... f1=Q {[%clk 0:00:06.7]} 56.
b8=Q {[%clk 0:00:23.9]} 56... Qf5+ {[%clk 0:00:06.6]} 57. Qb5 {[%clk 0:00:21.4]}
57... Qf3 {[%clk 0:00:03.8]} 58. Qg5+ {[%clk 0:00:20.5]} 58... Kh3 {[%clk
0:00:04.2]} 59. Kb6 {[%clk 0:00:14.6]} 59... Qf2+ {[%clk 0:00:03.9]} 60. Qc5
{[%clk 0:00:13.7]} 60... Qxc5+ {[%clk 0:00:02.8]} 61. Kxc5 {[%clk 0:00:14.6]}
61... Kxh4 {[%clk 0:00:03.7]} 62. a5 {[%clk 0:00:15.1]} 62... Kg3 {[%clk
0:00:04]} 63. a6 {[%clk 0:00:16]} 63... h4 {[%clk 0:00:04.9]} 64. a7 {[%clk
0:00:16.7]} 64... h3 {[%clk 0:00:05.8]} 65. a8=Q {[%clk 0:00:17.6]} 65... h2
{[%clk 0:00:06.7]} 66. Qh1 {[%clk 0:00:18.1]} 66... Kh3 {[%clk 0:00:04.8]} 67.
Kd4 {[%clk 0:00:17.9]} 67... Kg3 {[%clk 0:00:03.5]} 68. Ke3 {[%clk 0:00:18.8]}
1-0